bitfinex-derivatives/quotes_SOLF0:USTF0_20250820
["timestamp","ask_amount","ask_price","bid_price","bid_amount"]
[1755661843654,2.96,180.52,180.43,7.49444122]
[1755661846847,2.96,180.52,180.39,11.74144691]
[1755661846848,2.96,180.5,180.42,4.65444122]
[1755661847049,2.96,180.48,180.42,4.65444122]
[1755661847746,5.41661138,180.48,180.4,4.65444122]
[1755661851249,2.96,180.47,180.4,4.65444122]
[1755661852648,2.96,180.47,180.39,7.49444122]
[1755661853543,2.96,180.47,180.39,2.84]
[1755661855548,2.96,180.47,180.39,7.49444122]
[1755661856856,2.96,180.47,180.39,2.84]
[1755661860756,136.48,180.49,180.36,2.86]
[1755661860757,3.0,180.44,180.36,2.86]
[1755661860957,3.0,180.47,180.37,2.86]
[1755661861149,136.48,180.46,180.37,4.65444122]
[1755661861351,136.48,180.46,180.38,2.86]
[1755661862461,136.48,180.46,180.4,2.86]
[1755661865362,136.48,180.46,180.4,7.51444122]
[1755661865757,136.48,180.46,180.41,2.86]
[1755661865958,136.48,180.46,180.42,2.86]
[1755661866256,139.48,180.51,180.44,4.65444122]
[1755661866456,139.48,180.51,180.45,2.86]
[1755661866457,136.48,180.51,180.45,2.86]
[1755661866962,372.38,180.52,180.45,10.19624122]
[1755661867272,3.0,180.54,180.47,2.86]
[1755661867960,3.0,180.53,180.44,4.65444122]
[1755661868160,3.0,180.53,180.43,7.51444122]
[1755661868360,3.0,180.51,180.43,2.86]
[1755661870665,3.0,180.51,180.43,7.51444122]
[1755661871165,3.0,180.51,180.43,2.86]
[1755661871557,5.45661138,180.51,180.41,4.65444122]
[1755661871771,2.79918149,180.5,180.39,7.51444122]
[1755661871968,3.0,180.49,180.39,7.51444122]
[1755661872170,3.0,180.47,180.43,0.0387083]
[1755661872366,3.0,180.46,180.43,0.0387083]
[1755661872566,3.0,180.45,180.43,0.0387083]
[1755661873262,3.0,180.44,180.43,0.0387083]
[1755661875168,0.03525327,180.46,180.43,0.0387083]
[1755661875371,3.03525327,180.46,180.43,0.0387083]
[1755661875973,0.03525327,180.46,180.44,2.86]
[1755661876176,3.03525327,180.46,180.43,0.0387083]
[1755661876376,3.03525327,180.46,180.43,2.8987083]
[1755661877172,3.0,180.45,180.43,0.0387083]
[1755661877766,0.03525327,180.46,180.43,0.0387083]
[1755661877969,3.03525327,180.46,180.43,0.0387083]
[1755661879075,3.03525327,180.46,180.43,2.8987083]
[1755661879274,0.03525327,180.46,180.43,0.0387083]
[1755661879572,3.0,180.45,180.43,0.0387083]
[1755661879776,3.03525327,180.46,180.43,2.8987083]
[1755661880077,0.03525327,180.46,180.43,0.0387083]
[1755661880277,3.0,180.45,180.43,0.0387083]
[1755661882778,3.0,180.44,180.43,0.0387083]
[1755661883581,5.805388,180.44,180.43,0.0387083]
[1755661883878,3.0,180.43,180.36,4.65444122]
[1755661884075,3.0,180.42,180.35,4.65444122]
[1755661884382,136.44,180.41,180.36,4.65444122]
[1755661884684,139.44,180.41,180.36,7.51444122]
[1755661885074,0.03790304,180.4,180.36,7.51444122]
[1755661885277,3.03790304,180.4,180.36,2.86]
[1755661885681,3.0,180.39,180.35,7.51444122]
[1755661886282,0.03790304,180.4,180.35,4.65444122]
[1755661886475,0.03790304,180.4,180.37,2.86]
[1755661886884,3.03790304,180.4,180.37,2.86]
[1755661888186,0.03790304,180.4,180.35,4.65444122]
[1755661888390,3.12790304,180.4,180.36,3.11]
[1755661888691,0.03790304,180.4,180.36,3.11]
[1755661888890,3.12790304,180.4,180.36,3.11]
[1755661889092,3.12790304,180.4,180.37,3.11]
[1755661890486,3.09,180.39,180.33,4.65444122]
[1755661890692,3.09,180.36,180.3,4.65444122]
[1755661890991,3.09,180.36,180.28,7.76444122]
[1755661891684,0.03812067,180.34,180.28,7.76444122]
[1755661892292,0.03812067,180.34,180.28,3.11]
[1755661893593,0.03812067,180.34,180.3,3.11]
[1755661894198,0.03812067,180.34,180.3,4.65444122]
[1755661894390,0.03812067,180.34,180.31,3.11]
[1755661894898,0.03812067,180.34,180.32,3.11]
[1755661895187,0.03812067,180.34,180.33,3.11]
[1755661895993,136.44,180.4,180.33,3.11]
[1755661897898,375.55,180.43,180.35,3.11]
[1755661898192,372.46,180.43,180.36,3.11]
[1755661898788,372.46,180.43,180.37,3.11]
[1755661898991,136.46,180.44,180.37,3.11]
[1755661899195,136.46,180.44,180.38,5.5439]
[1755661899401,136.46,180.44,180.39,3.11]
[1755661899793,136.46,180.44,180.38,4.65444122]
[1755661900399,136.46,180.44,180.42,3.11]
[1755661901599,136.46,180.44,180.39,10.19804122]
[1755661901806,3.09,180.51,180.4,5.56661138]
[1755661902099,136.46,180.5,180.41,4.65444122]
[1755661902300,136.46,180.5,180.42,3.11]
[1755661902700,136.46,180.5,180.42,7.76444122]
[1755661902901,136.46,180.5,180.43,5.56661138]
[1755661903097,136.46,180.5,180.43,7.1110526]
[1755661903295,136.46,180.5,180.44,3.11]
[1755661903496,136.46,180.5,180.44,13.30634122]
[1755661903695,136.46,180.5,180.45,3.11]
[1755661903896,372.56,180.53,180.46,3.11]
[1755661904097,372.56,180.53,180.46,5.56661138]
[1755661904496,372.56,180.53,180.47,3.11]
[1755661907108,3.09,180.54,180.47,3.11]
[1755661908904,3.09,180.54,180.46,2.45661138]
[1755661909109,3.09,180.54,180.43,10.2210526]
[1755661909604,3.09,180.54,180.44,7.76444122]
[1755661909808,3.09,180.54,180.46,2.45661138]
[1755661910009,3.09,180.54,180.47,3.11]
[1755661910706,3.09,180.57,180.47,3.11]
[1755661911015,136.38,180.56,180.48,3.11]
[1755661911212,136.38,180.56,180.49,2.45661138]
[1755661911408,136.38,180.56,180.5,3.11]
[1755661913113,136.38,180.56,180.49,2.45661138]
[1755661913114,3.09,180.55,180.49,2.45661138]
[1755661913414,3.09,180.55,180.47,3.11]
[1755661915001,3.09,180.55,180.45,2.45661138]
[1755661915712,3.09,180.51,180.48,0.04213642]
[1755661915911,3.09,180.5,180.48,0.04213642]
[1755661916113,0.04169901,180.52,180.48,0.04213642]
[1755661916306,3.09,180.49,180.48,0.04213642]
[1755661916813,3.09,180.51,180.48,0.04213642]
[1755661917004,3.09,180.5,180.48,0.04213642]
[1755661918319,3.13169901,180.52,180.48,3.05213642]
[1755661919115,3.13169901,180.52,180.48,0.04213642]
[1755661919414,3.13169901,180.52,180.49,3.01]
[1755661919713,0.04169901,180.52,180.48,0.04213642]
[1755661920121,2.87,180.51,180.48,0.04213642]
[1755661921217,2.87,180.5,180.48,0.04213642]
[1755661921511,2.87,180.49,180.48,0.04213642]
[1755661922213,0.04169901,180.52,180.48,0.04213642]
[1755661922418,2.87,180.5,180.48,0.04213642]
[1755661922614,0.04169901,180.52,180.48,3.05213642]
[1755661922814,0.04169901,180.52,180.49,3.01]
[1755661923611,2.91169901,180.52,180.49,3.01]
[1755661923920,2.91169901,180.52,180.48,0.04213642]
[1755661924116,0.04169901,180.52,180.48,0.04213642]
[1755661924317,0.04169901,180.52,180.49,3.01]
[1755661924712,2.87,180.51,180.48,0.04213642]
[1755661925317,0.04169901,180.52,180.49,3.01]
[1755661925516,0.04169901,180.52,180.48,0.04213642]
[1755661925817,2.87,180.51,180.48,0.04213642]
[1755661926011,2.87,180.5,180.48,0.04213642]
[1755661926312,0.04169901,180.52,180.48,0.04213642]
[1755661926514,2.87,180.49,180.48,0.04213642]
[1755661926709,139.19,180.49,180.48,0.04213642]
[1755661927813,136.32,180.49,180.48,0.04213642]
[1755661928718,139.19,180.49,180.48,0.04213642]
[1755661931617,2.87,180.49,180.48,0.04213642]
[1755661932719,136.32,180.5,180.48,0.04213642]
[1755661932914,136.32,180.5,180.48,3.05213642]
[1755661933518,136.32,180.5,180.49,3.01]
[1755661933924,136.32,180.5,180.48,0.04213642]
[1755661935619,136.32,180.5,180.48,3.05213642]
[1755661939526,136.32,180.5,180.48,0.04213642]
[1755661941627,139.19,180.5,180.48,0.04213642]
[1755661942927,2.87,180.49,180.48,0.04213642]
[1755661943722,136.32,180.5,180.48,0.04213642]
[1755661944922,136.32,180.5,180.48,3.05213642]
[1755661948331,139.19,180.5,180.48,0.04213642]
[1755661950428,136.32,180.5,180.48,2.97213642]
[1755661950733,136.32,180.5,180.49,2.93]
[1755661952233,136.32,180.5,180.48,0.04213642]
[1755661952426,139.36,180.5,180.48,0.04213642]
[1755661956542,3.04,180.49,180.48,0.04213642]
[1755661957732,136.32,180.5,180.48,0.04213642]
[1755661957937,136.32,180.5,180.48,2.97213642]
[1755661959638,136.32,180.5,180.48,0.04213642]
[1755661959834,136.32,180.5,180.49,2.93]
[1755661960736,0.04169901,180.52,180.48,0.04213642]
[1755661960936,0.04169901,180.52,180.5,2.93]
[1755661962540,0.04169901,180.52,180.48,0.04213642]
[1755661962541,0.04169901,180.52,180.51,2.93]
[1755661962744,0.04169901,180.52,180.48,9.16202677]
[1755661963137,0.04169901,180.52,180.48,6.23202677]
[1755661963430,0.04169901,180.52,180.48,0.04213642]
[1755661963636,3.04,180.5,180.48,0.04213642]
[1755661964643,3.04,180.51,180.48,2.97213642]
[1755661965842,0.04169901,180.52,180.48,0.04213642]
[1755661966142,0.04169901,180.52,180.49,2.93]
[1755661967141,0.04169901,180.52,180.5,2.93]
[1755661967348,0.04169901,180.52,180.51,2.93]
[1755661967944,0.04169901,180.52,180.51,8.4699]
[1755661969947,0.04169901,180.52,180.5,7.99681138]
[1755661970150,0.04169901,180.52,180.5,2.45661138]
[1755661970350,0.04169901,180.52,180.5,5.38661138]
[1755661971158,0.04169901,180.52,180.48,11.77282677]
[1755661971347,0.04169901,180.52,180.48,14.70282677]
[1755661971551,0.04169901,180.52,180.49,2.93]
[1755661971848,0.04169901,180.52,180.48,0.04213642]
[1755661972056,3.04,180.51,180.48,2.97213642]
[1755661972254,0.04169901,180.52,180.48,0.04213642]
[1755661972454,0.04169901,180.52,180.49,2.93]
[1755661972858,3.08169901,180.52,180.49,2.93]
[1755661974861,0.04169901,180.52,180.48,0.04213642]
[1755661975356,0.04169901,180.52,180.51,2.93]
[1755661977555,3.04,180.51,180.48,0.04213642]
[1755661977955,3.04,180.5,180.48,0.04213642]
[1755661978654,2.9,180.51,180.48,0.04213642]
[1755661980456,2.9,180.5,180.48,0.04213642]
[1755661981062,2.94169901,180.52,180.48,2.91213642]
[1755661981459,0.04169901,180.52,180.48,0.04213642]
[1755661981660,2.9,180.51,180.48,0.04213642]
[1755661982558,2.49831039,180.52,180.48,0.04213642]
[1755661982559,2.9,180.49,180.48,0.04213642]
[1755661982755,5.71565026,180.49,180.48,0.04213642]
[1755661982950,5.71479677,180.49,180.48,0.04213642]
[1755661984462,2.9,180.49,180.48,0.04213642]
[1755661985956,5.8282178,180.49,180.39,6.18989035]
[1755661986254,5.8282178,180.49,180.38,2.87]
[1755661986255,5.70384583,180.48,180.38,2.87]
[1755661986457,2.45661138,180.49,180.38,2.87]
[1755661986458,5.70384583,180.47,180.38,2.87]
[1755661986657,2.9,180.45,180.38,2.87]
[1755661987262,0.03584846,180.43,180.38,2.87]
[1755661987562,2.93584846,180.43,180.39,2.87]
[1755661987955,2.93584846,180.43,180.35,6.18989035]
[1755661987956,0.03584846,180.43,180.35,6.18989035]
[1755661988155,2.9,180.42,180.34,2.87]
[1755661989057,0.04175662,180.4,180.34,2.87]
[1755661990266,2.94175662,180.4,180.34,2.87]
[1755661990559,2.94175662,180.4,180.3,2.45661138]
[1755661990560,2.94175662,180.4,180.31,2.87]
[1755661996165,2.94175662,180.4,180.33,2.87]
[1755661996359,0.04175662,180.4,180.33,5.32661138]
[1755661996559,0.04175662,180.4,180.34,8.4149]
[1755661996761,0.04175662,180.4,180.34,5.5449]
[1755661996955,0.04175662,180.4,180.35,2.87]
[1755661997161,0.04175662,180.4,180.36,2.87]
[1755661997366,0.04175662,180.4,180.34,2.87]
[1755661998766,0.04175662,180.4,180.35,2.87]
[1755661999070,0.04175662,180.4,180.38,2.87]
[1755661999569,0.04175662,180.4,180.39,2.87]
[1755661999958,0.04175662,180.4,180.34,2.87]
[1755662000464,0.04175662,180.4,180.34,8.4151]
[1755662001169,0.04175662,180.4,180.36,2.87]
[1755662001371,0.04175662,180.4,180.36,2.45661138]
[1755662001572,0.04175662,180.4,180.37,2.87]
[1755662001767,0.04175662,180.4,180.39,2.45661138]
[1755662001964,2.9,180.47,180.39,2.45661138]
[1755662002167,2.9,180.47,180.4,2.87]
[1755662008075,508.6,180.48,180.41,2.87]
[1755662010076,508.6,180.48,180.41,8.4128]
[1755662012373,508.6,180.48,180.42,5.5426]
[1755662012575,508.6,180.48,180.44,2.97]
[1755662012879,136.28,180.48,180.42,2.45661138]
[1755662013080,139.24,180.48,180.44,2.97]
[1755662015969,2.96,180.47,180.44,2.97]
[1755662016576,136.28,180.48,180.45,2.97]
[1755662016980,139.24,180.48,180.45,2.97]
[1755662017782,136.28,180.48,180.44,5.542]
[1755662017981,2.96,180.51,180.45,2.45661138]
[1755662018180,2.96,180.51,180.45,5.42661138]
[1755662019182,2.96,180.51,180.45,10.96801138]
[1755662020782,2.96,180.51,180.45,5.42661138]
[1755662022974,2.96,180.51,180.45,2.45661138]
[1755662023175,2.96,180.51,180.47,2.97]
[1755662023377,2.96,180.51,180.45,7.99831138]
[1755662023584,136.24,180.52,180.49,2.97]
[1755662023883,139.2,180.52,180.49,2.97]
[1755662025386,2.96,180.51,180.45,10.96831138]
[1755662027083,2.96,180.51,180.46,5.5413]
[1755662027283,2.96,180.51,180.48,2.97]
[1755662027482,2.96,180.51,180.45,5.42661138]
[1755662028088,2.96,180.51,180.45,10.96811138]
[1755662030484,2.96,180.56,180.41,9.15989035]
[1755662030687,2.96,180.54,180.41,2.97]
[1755662031582,2.96,180.52,180.41,2.97]
[1755662031984,2.96,180.52,180.42,5.5427]
[1755662032187,2.96,180.52,180.43,2.97]
[1755662032790,2.96,180.52,180.43,8.5123]
[1755662034097,2.45661138,180.47,180.36,6.18989035]
[1755662034289,2.96,180.46,180.35,2.97]
[1755662034482,2.96,180.46,180.37,2.97]
[1755662034684,2.96,180.46,180.39,8.5134]
[1755662034886,2.96,180.46,180.39,2.97]
[1755662035890,2.96,180.46,180.4,5.543]
[1755662036285,2.96,180.46,180.39,2.97]
[1755662036989,136.2,180.49,180.4,2.97]
[1755662038099,136.2,180.49,180.41,5.5429]
[1755662038486,2.84,180.48,180.4,2.97]
[1755662038890,2.84,180.48,180.4,5.5431]
[1755662039194,2.84,180.48,180.41,3.13]
[1755662039792,2.84,180.48,180.41,8.6729]
[1755662039997,2.84,180.48,180.42,3.13]
[1755662040891,136.22,180.55,180.42,5.58661138]
[1755662041097,2.84,180.53,180.45,5.58661138]
[1755662041291,2.84,180.53,180.45,2.45661138]
[1755662041494,2.84,180.53,180.48,2.45661138]
[1755662041696,2.84,180.56,180.49,3.13]
[1755662044505,2.84,180.56,180.48,2.45661138]
[1755662045503,2.80475323,180.55,180.45,2.45661138]
[1755662045699,5.64475323,180.54,180.45,2.45661138]
[1755662045904,2.84,180.57,180.45,2.45661138]
[1755662046104,2.80482898,180.56,180.45,2.45661138]
[1755662046404,2.80482898,180.55,180.45,2.45661138]
[1755662046710,2.84,180.53,180.45,2.45661138]
[1755662046904,2.84,180.53,180.47,5.5409]
[1755662047408,2.84,180.53,180.46,8.6713]
[1755662048206,2.84,180.53,180.46,3.13]
[1755662048600,2.84,180.53,180.46,8.6714]
[1755662049004,2.84,180.53,180.46,3.13]
[1755662052912,2.84,180.53,180.46,8.6714]
[1755662053911,2.84,180.53,180.46,3.13]
[1755662059706,2.84,180.53,180.45,2.45661138]
[1755662059911,2.84,180.51,180.42,5.58661138]
[1755662060701,2.84,180.51,180.43,5.5423]
[1755662060912,2.84,180.51,180.42,5.58661138]
[1755662061108,2.84,180.51,180.43,3.13]
[1755662061710,2.84,180.51,180.44,5.5418]
[1755662061913,2.84,180.51,180.43,3.13]
[1755662062315,2.84,180.51,180.45,5.5417]
[1755662062509,2.84,180.51,180.43,3.13]
[1755662062913,2.84,180.52,180.43,3.13]
[1755662063516,2.84,180.52,180.46,5.5414]
[1755662068114,2.45661138,180.58,180.48,3.13]
[1755662068417,2.84,180.55,180.48,3.13]
[1755662068619,2.84,180.55,180.49,5.5403]
[1755662070120,2.84,180.55,180.48,8.6707]
[1755662073124,2.84,180.55,180.49,5.5404]
[1755662073517,2.84,180.55,180.51,2.86]
[1755662074223,3.0,180.58,180.5,2.86]
[1755662074423,2.8068203,180.57,180.5,2.86]
[1755662074916,2.8068203,180.57,180.5,8.4001]
[1755662075122,2.8068203,180.57,180.51,2.86]
[1755662075317,3.0,180.58,180.51,5.31661138]
[1755662075525,3.0,180.58,180.52,2.86]
[1755662077130,139.32,180.61,180.53,2.86]
[1755662077417,139.32,180.61,180.55,2.86]
[1755662079013,3.0,180.6,180.52,2.86]
[1755662083625,139.32,180.61,180.52,2.86]
[1755662084024,136.32,180.61,180.54,2.45661138]
[1755662084327,136.32,180.61,180.55,2.86]
[1755662084827,139.32,180.61,180.55,2.86]
[1755662090228,3.0,180.6,180.55,2.86]
[1755662090426,136.32,180.61,180.54,2.45661138]
[1755662090632,3.0,180.59,180.55,2.86]
[1755662091630,136.32,180.61,180.55,2.86]
[1755662092734,3.0,180.59,180.55,2.86]
[1755662093034,136.32,180.61,180.52,2.86]
[1755662093035,3.0,180.6,180.52,2.86]
[1755662093436,3.0,180.6,180.52,7.49727142]
[1755662093734,3.0,180.6,180.52,2.86]
[1755662094236,3.0,180.6,180.53,2.86]
[1755662096337,3.0,180.6,180.54,2.86]
[1755662101344,3.03,180.69,180.55,3.05]
[1755662101538,3.03,180.64,180.55,3.05]
[1755662102040,3.03,180.62,180.55,3.05]
[1755662102541,139.13,180.65,180.55,3.05]
[1755662102740,139.13,180.65,180.55,7.68727142]
[1755662102938,3.03,180.64,180.55,15.6822828]
[1755662103240,3.03,180.64,180.56,3.05]
[1755662109245,3.03,180.64,180.56,7.68698512]
[1755662110145,3.03,180.64,180.56,3.05]
[1755662110348,3.03,180.64,180.57,3.05]
[1755662110843,136.1,180.65,180.61,3.05]
[1755662111048,3.03,180.67,180.61,2.45661138]
[1755662111251,3.03,180.67,180.62,3.05]
[1755662111439,3.03,180.67,180.64,3.05]
[1755662111942,508.24,180.7,180.61,2.45661138]
[1755662112144,508.24,180.7,180.46,26.55722589]
[1755662112145,3.03,180.68,180.59,3.05]
[1755662112344,3.03,180.66,180.57,4.63698512]
[1755662112743,2.8055753,180.65,180.57,4.63698512]
[1755662112945,3.03,180.64,180.57,4.63698512]
[1755662113151,3.03,180.64,180.56,7.68698512]
[1755662113443,3.03,180.64,180.58,3.05]
[1755662113946,3.03,180.64,180.58,7.68698512]
[1755662114444,3.03,180.64,180.58,3.05]
[1755662114949,3.03,180.64,180.58,7.68698512]
[1755662116251,3.03,180.64,180.57,4.63698512]
[1755662117246,3.03,180.64,180.58,4.63698512]
[1755662119052,3.03,180.64,180.58,7.68698512]
[1755662121548,3.03,180.64,180.59,4.63698512]
[1755662121754,3.03,180.64,180.6,3.05]
[1755662123655,2.81101339,180.63,180.56,4.63698512]
[1755662123955,3.03,180.59,180.57,4.63698512]
[1755662124255,3.03,180.61,180.57,7.68698512]
[1755662124449,2.45661138,180.66,180.57,3.05]
[1755662124655,3.03,180.59,180.56,4.63698512]
[1755662124856,3.03,180.59,180.56,7.68698512]
[1755662125557,3.03,180.58,180.55,4.63698512]
[1755662125760,3.03,180.57,180.55,4.63698512]
[1755662127059,3.03,180.57,180.54,7.68698512]
[1755662127262,136.02,180.62,180.54,4.63698512]
[1755662127461,3.03,180.6,180.54,4.63698512]
[1755662131366,3.03,180.6,180.55,2.94]
[1755662131560,3.03,180.6,180.56,2.94]
[1755662131767,3.03,180.6,180.57,2.94]
[1755662134568,2.86,180.62,180.54,4.63698512]
[1755662134872,2.86,180.6,180.53,7.57698512]
[1755662135070,2.81128432,180.59,180.53,7.57698512]
[1755662136373,2.86,180.6,180.53,7.57698512]
[1755662139171,2.86,180.6,180.54,4.63698512]
[1755662139566,2.45661138,180.63,180.54,4.63698512]
[1755662139871,2.45661138,180.63,180.55,2.94]
[1755662140070,138.88,180.64,180.55,2.94]
[1755662141569,138.88,180.64,180.57,4.63698512]
[1755662141772,138.88,180.64,180.58,2.94]
[1755662142975,2.86,180.63,180.57,4.63698512]
[1755662143165,2.86,180.63,180.55,7.57698512]
[1755662146979,2.86,180.63,180.55,2.94]
[1755662147779,2.86,180.61,180.55,2.94]
[1755662149677,2.86,180.61,180.54,4.63698512]
[1755662149987,2.86,180.59,180.53,7.57698512]
[1755662150182,5.66552976,180.58,180.51,4.63698512]
[1755662150486,2.8055858,180.57,180.5,7.57698512]
[1755662150673,2.86,180.56,180.5,7.57698512]
[1755662150880,2.86,180.55,180.51,7.57698512]
[1755662151082,2.86,180.55,180.51,2.94]
[1755662151387,2.86,180.58,180.49,4.63698512]
[1755662151684,2.86,180.56,180.48,94.73726309]
[1755662153374,5.31661138,180.56,180.48,94.73726309]
[1755662153580,5.31661138,180.56,180.46,6.18989035]
[1755662153581,2.86,180.54,180.46,4.63698512]
[1755662153781,2.86,180.52,180.45,7.57698512]
[1755662154182,2.86,180.52,180.45,2.94]
[1755662160389,3.01,180.49,180.39,7.61698512]
[1755662160588,3.01,180.49,180.38,2.98]
[1755662160984,5.46661138,180.52,180.39,2.98]
[1755662161185,135.98,180.51,180.4,4.63698512]
[1755662161389,135.98,180.51,180.42,5.5424]
[1755662161595,135.98,180.51,180.43,2.98]
[1755662161789,3.01,180.5,180.43,2.98]
[1755662165191,135.98,180.51,180.43,2.98]
[1755662170287,138.99,180.51,180.43,2.98]
[1755662177700,135.98,180.51,180.43,2.98]
[1755662177898,3.01,180.5,180.43,2.98]
[1755662182002,3.01,180.5,180.43,7.61698512]
[1755662182200,3.01,180.5,180.44,2.98]
[1755662183608,135.98,180.51,180.44,7.61698512]
[1755662183804,135.98,180.51,180.45,2.98]
[1755662184002,135.98,180.51,180.45,5.43661138]
[1755662184297,3.01,180.53,180.46,2.98]
[1755662186107,3.01,180.53,180.46,7.61698512]
[1755662186308,3.01,180.53,180.47,2.98]
[1755662189398,3.12,180.56,180.48,7.0935965]
[1755662189607,3.12,180.56,180.49,3.14]
[1755662190111,3.12,180.56,180.5,3.14]
[1755662190603,3.12,180.56,180.5,7.77698512]
[1755662194206,3.12,180.56,180.51,4.63698512]
[1755662194505,3.12,180.56,180.5,7.77698512]
[1755662194706,3.12,180.56,180.5,3.14]
[1755662195010,3.12,180.56,180.5,7.77698512]
[1755662201115,3.12,180.56,180.51,3.14]
[1755662201306,3.12,180.56,180.5,4.63698512]
[1755662201612,3.12,180.56,180.53,3.14]
[1755662202014,135.9,180.59,180.52,3.14]
[1755662202214,372.26,180.64,180.54,2.45661138]
[1755662202417,141.81926997,180.63,180.55,3.14]
[1755662202611,5.91926997,180.62,180.55,3.14]
[1755662202814,2.79926997,180.61,180.55,3.14]
[1755662203211,3.12,180.62,180.55,3.14]
[1755662208526,3.12,180.62,180.55,7.77698512]
[1755662208822,3.12,180.62,180.56,3.14]
[1755662210521,3.12,180.62,180.55,3.14]
[1755662212427,3.12,180.62,180.56,3.14]
[1755662213619,3.12,180.62,180.54,2.45661138]
[1755662214129,3.12,180.62,180.55,3.14]
[1755662217031,3.12,180.62,180.52,7.77698512]
[1755662217332,3.12,180.62,180.52,3.14]
[1755662218031,3.12,180.62,180.52,7.77698512]
[1755662221036,3.12,180.62,180.52,4.63698512]
[1755662221334,3.12,180.62,180.53,2.91]
[1755662221737,135.82,180.61,180.53,2.91]
[1755662221932,3.07,180.6,180.53,2.91]
[1755662223037,135.82,180.61,180.55,2.45661138]
[1755662223538,135.82,180.61,180.59,2.91]
[1755662223739,3.07,180.63,180.55,7.0935965]
[1755662223941,135.82,180.62,180.59,2.91]
[1755662226440,135.82,180.62,180.55,7.0935965]
[1755662226739,138.89,180.62,180.56,2.91]
[1755662229244,138.89,180.62,180.55,7.0935965]
[1755662229844,138.89,180.62,180.56,2.91]
[1755662232146,138.89,180.62,180.56,7.54698512]
[1755662232341,138.89,180.62,180.56,2.91]
[1755662233446,138.89,180.62,180.56,7.54698512]
[1755662236646,138.89,180.62,180.57,4.63698512]
[1755662236952,138.89,180.62,180.58,2.91]
[1755662237154,135.82,180.62,180.57,4.63698512]
[1755662237351,135.82,180.62,180.6,2.91]
[1755662237552,138.89,180.62,180.58,2.91]
[1755662237752,138.89,180.62,180.59,2.91]
[1755662238152,3.07,180.61,180.57,2.91]
[1755662238352,3.07,180.6,180.57,2.91]
[1755662239652,135.82,180.62,180.58,2.91]
[1755662239954,3.07,180.61,180.58,2.91]
[1755662242356,3.07,180.61,180.59,2.91]
[1755662243359,135.82,180.62,180.59,2.91]
[1755662243657,135.82,180.62,180.6,2.91]
[1755662244561,135.82,180.62,180.59,4.63698512]
[1755662244761,135.82,180.62,180.57,5.538]
[1755662244762,3.07,180.66,180.6,4.63698512]
[1755662244958,3.07,180.66,180.62,2.91]
[1755662245158,5.87338836,180.65,180.62,2.91]
[1755662245358,3.07,180.65,180.62,2.91]
[1755662245966,135.74,180.68,180.64,2.91]
[1755662246171,2.80289734,180.67,180.64,2.91]
[1755662246471,3.07,180.66,180.64,2.91]
[1755662247470,3.07,180.67,180.64,2.91]
[1755662248974,135.74,180.68,180.64,2.91]
[1755662249177,2.99,180.66,180.63,2.9]
[1755662255882,135.74,180.68,180.63,2.9]
[1755662256088,2.99,180.67,180.6,7.53698512]